bitfinex-derivatives/quotes_SOLF0:USTF0_20240918
["timestamp","ask_amount","ask_price","bid_price","bid_amount"]
[1726692362920,16.57,130.54,130.4,16.57]
[1726692362921,16.57,130.48,130.4,16.57]
[1726692363128,1.16783101,130.47,130.4,16.57]
[1726692363324,4.99993503,130.46,130.42,3.8329]
[1726692363520,1.16783503,130.45,130.42,3.8329]
[1726692363920,1.16783539,130.44,130.41,3.8333]
[1726692364321,1.16783539,130.44,130.38,16.57]
[1726692364923,1.16783539,130.44,130.42,3.833]
[1726692367319,3.8325,130.45,130.42,3.833]
[1726692367630,1.16782953,130.44,130.42,3.833]
[1726692367831,1.16782953,130.43,130.42,3.833]
[1726692368031,3.8323,130.45,130.42,3.833]
[1726692368230,1.16782953,130.44,130.42,3.833]
[1726692371335,3.8323,130.45,130.42,3.833]
[1726692371537,1.16781044,130.44,130.42,3.833]
[1726692371834,5.00041044,130.44,130.41,3.8333]
[1726692372030,1.16781044,130.43,130.41,3.8333]
[1726692373230,3.75796708,130.42,130.4,3.8336]
[1726692373736,1.16800902,130.41,130.36,16.57]
[1726692374040,7.67316202,130.41,130.38,3.8342]
[1726692374245,1.16807772,130.4,130.33,18.0582]
[1726692374434,3.8347,130.37,130.34,3.8354]
[1726692374939,16.57,130.4,130.31,16.57]
[1726692375141,3.8345,130.38,130.31,16.57]
[1726692375340,16.57,130.4,130.31,16.57]
[1726692375540,1.16841736,130.37,130.31,16.57]
[1726692375737,16.57,130.4,130.31,16.57]
[1726692375936,16.57,130.4,130.33,3.8356]
[1726692376143,1.16845216,130.39,130.33,3.8356]
[1726692376344,3.8348,130.37,130.33,3.8356]
[1726692376651,3.8348,130.37,130.31,16.57]
[1726692376842,3.8351,130.36,130.29,16.57]
[1726692377048,16.57,130.38,130.31,3.8361]
[1726692377236,16.57,130.38,130.28,2.8922]
[1726692377237,1.16854081,130.37,130.28,17.9976]
[1726692377438,3.8359,130.33,130.28,16.57]
[1726692377637,16.57,130.35,130.26,16.57]
[1726692377838,3.90619515,130.35,130.29,16.57]
[1726692378144,3.8354,130.35,130.31,3.8363]
[1726692378332,3.8354,130.35,130.29,16.57]
[1726692378333,3.9073464,130.35,130.27,16.57]
[1726692378535,16.57,130.35,130.27,16.57]
[1726692378733,20.38853993,130.35,130.29,3.8367]
[1726692378934,3.8358,130.33,130.29,3.8367]
[1726692379138,20.38853993,130.35,130.26,16.57]
[1726692379344,5.46026924,130.34,130.24,16.57]
[1726692379545,3.8369,130.3,130.24,16.57]
[1726692379840,3.82429884,130.3,130.26,3.8378]
[1726692380046,3.8367,130.3,130.26,3.8378]
[1726692380248,20.42155767,130.31,130.24,16.57]
[1726692380436,20.42155767,130.31,130.25,3.8379]
[1726692380745,3.837,130.29,130.25,3.8379]
[1726692380948,20.42155767,130.31,130.26,3.8378]
[1726692381150,3.85155767,130.31,130.24,16.57]
[1726692381345,4.2914,130.34,130.27,16.57]
[1726692381547,8.18096646,130.34,130.3,3.8365]
[1726692381855,3.88956646,130.34,130.29,16.57]
[1726692382146,3.88956646,130.34,130.23,2.9646]
[1726692382147,16.57,130.38,130.33,3.8355]
[1726692382347,1.16866332,130.37,130.33,3.8355]
[1726692382543,3.8349,130.36,130.31,16.57]
[1726692383042,3.8349,130.36,130.29,16.57]
[1726692383043,3.8356,130.34,130.29,16.57]
[1726692383233,3.74636161,130.36,130.29,16.57]
[1726692383234,16.57,130.37,130.29,16.57]
[1726692383434,1.16874606,130.36,130.29,16.57]
[1726692383638,1.16874606,130.36,130.3,3.8367]
[1726692383846,16.57,130.35,130.3,3.8367]
[1726692384153,3.82353098,130.37,130.25,16.57]
[1726692384154,17.73885092,130.34,130.25,16.57]
[1726692384338,18.1032,130.34,130.25,16.57]
[1726692384538,16.57,130.32,130.23,19.5346]
[1726692384744,20.3359419,130.32,130.23,19.5346]
[1726692385545,3.8368,130.3,130.26,3.8377]
[1726692386845,3.8368,130.3,130.27,3.8375]
[1726692387543,20.3359419,130.32,130.26,3.8377]
[1726692387846,16.57,130.29,130.2,140.10042389]
[1726692388043,16.57,130.27,130.22,3.8389]
[1726692388444,3.838,130.26,130.22,3.8389]
[1726692389140,3.8382,130.25,130.21,3.8391]
[1726692389443,3.8382,130.25,130.2,140.10042389]
[1726692389948,3.823465,130.26,130.2,140.10042389]
[1726692390141,16.57,130.28,130.2,140.10042389]
[1726692390654,3.8377,130.27,130.23,3.8387]
[1726692391147,3.838,130.26,130.22,3.8389]
[1726692391345,20.35352523,130.26,130.2,140.10042389]
[1726692391654,20.35352523,130.26,130.17,18.0311]
[1726692391655,3.8385,130.24,130.17,18.0311]
[1726692391848,16.57,130.25,130.17,18.0311]
[1726692392147,20.39423307,130.25,130.17,18.0311]
[1726692392948,20.39423307,130.25,130.21,3.8391]
[1726692393447,24.23253307,130.25,130.22,3.8389]
[1726692393647,7.66253307,130.25,130.22,3.8389]
[1726692395155,3.8385,130.24,130.17,18.0311]
[1726692395358,20.39423307,130.25,130.17,16.57]
[1726692395552,3.82423307,130.25,130.16,1.5341]
[1726692395854,16.57,130.23,130.16,1.5341]
[1726692396150,16.57,130.21,130.13,18.0361]
[1726692396647,3.76796738,130.21,130.13,18.0361]
[1726692396853,16.57,130.23,130.18,3.84]
[1726692397449,4.4022,130.27,130.2,16.57]
[1726692397954,3.8383,130.25,130.21,3.8392]
[1726692398156,7.70844398,130.25,130.21,3.8392]
[1726692399455,3.8387,130.24,130.2,3.8395]
[1726692399650,16.57,130.24,130.15,16.57]
[1726692399849,16.57,130.24,130.14,7.6823]
[1726692399850,3.8394,130.21,130.18,3.8401]
[1726692400251,7.6188975,130.21,130.18,3.8401]
[1726692400453,3.7794975,130.21,130.19,3.8398]
[1726692400659,5.2841,130.22,130.19,3.8398]
[1726692400956,1.4449,130.22,130.19,3.8398]
[1726692401149,5.30317054,130.22,130.19,3.8398]
[1726692401352,5.30317054,130.22,130.2,3.8396]
[1726692402857,5.30317054,130.22,130.19,3.8397]
[1726692403557,5.30317054,130.22,130.14,26.57]
[1726692404854,5.30317054,130.22,130.19,3.8397]
[1726692405553,5.30317054,130.22,130.14,26.57]
[1726692405554,9.14237054,130.22,130.14,26.57]
[1726692405956,9.14237054,130.22,130.18,3.84]
[1726692406151,9.14237054,130.22,130.14,26.57]
[1726692406752,9.14237054,130.22,130.19,3.8398]
[1726692408356,5.30317054,130.22,130.19,3.8398]
[1726692410057,3.85827054,130.22,130.16,26.57]
[1726692410259,28.1061,130.26,130.16,26.57]
[1726692410454,3.8386,130.24,130.21,3.8393]
[1726692410647,3.76183298,130.23,130.16,26.57]
[1726692410849,1.5361,130.26,130.17,1.4666]
[1726692411047,5.3741,130.26,130.22,3.8388]
[1726692411253,9.28961833,130.26,130.17,1.4666]
[1726692411654,9.28961833,130.26,130.22,3.8388]
[1726692414256,3.8382,130.25,130.22,3.8388]
[1726692414454,3.8382,130.25,130.21,3.8392]
[1726692414762,3.8382,130.25,130.17,1.4666]
[1726692414962,9.28961833,130.26,130.17,1.4666]
[1726692415262,5.45161833,130.26,130.17,9.1476]
[1726692416055,3.91551833,130.26,130.2,26.57]
[1726692416263,155.0712,130.31,130.2,26.57]
[1726692416559,1.4312,130.31,130.2,26.57]
[1726692417363,3.8369,130.3,130.26,3.8376]
[1726692417763,3.8369,130.3,130.2,34.2492]
[1726692417965,3.8369,130.3,130.27,3.8375]
[1726692418167,1.4312,130.31,130.21,7.6785]
[1726692418366,1.4312,130.31,130.23,26.57]
[1726692418870,5.2677,130.31,130.23,26.57]
[1726692419067,1.4312,130.31,130.23,26.57]
[1726692419366,3.8368,130.3,130.23,26.57]
[1726692420071,3.8368,130.3,130.27,3.8374]
[1726692421165,5.2677,130.31,130.27,3.8374]
[1726692421565,1.4312,130.31,130.27,3.8374]
[1726692421777,3.8367,130.3,130.27,3.8374]
[1726692422274,3.8367,130.3,130.23,16.58]
[1726692423075,3.8367,130.3,130.27,3.8374]
[1726692424079,1.4312,130.31,130.23,16.58]
[1726692424283,16.58,130.29,130.22,1.5024]
[1726692424485,1.4312,130.31,130.19,16.58]
[1726692424486,16.58,130.27,130.19,16.58]
[1726692424685,16.58,130.27,130.23,3.8386]
[1726692425186,20.4178,130.27,130.23,3.8386]
[1726692426082,3.88777463,130.26,130.21,16.58]
[1726692426292,1.4312,130.31,130.22,16.58]
[1726692426581,3.8371,130.29,130.24,3.8382]
[1726692426776,16.58,130.3,130.21,16.58]
[1726692426978,16.58,130.28,130.21,16.58]
[1726692427283,20.4174,130.28,130.21,16.58]
[1726692427480,16.58,130.28,130.21,16.58]
[1726692427882,16.58,130.28,130.26,3.8378]
[1726692428586,16.58,130.28,130.25,3.838]
[1726692429085,20.4168,130.3,130.22,16.58]
[1726692429288,18.0112,130.31,130.22,16.58]
[1726692429581,18.0112,130.31,130.24,16.58]
[1726692430485,21.8478,130.31,130.27,3.8373]
[1726692433084,1.4312,130.31,130.18,3.0519]
[1726692433388,1.4312,130.31,130.2,16.58]
[1726692433389,17.74913297,130.3,130.2,16.58]
[1726692433587,5.00623297,130.29,130.2,16.58]
[1726692433791,16.58,130.3,130.2,16.58]
[1726692433988,1.16929149,130.29,130.2,16.58]
[1726692434289,3.8375,130.28,130.24,3.8383]
[1726692437185,16.58,130.27,130.19,16.58]
[1726692437681,20.4178,130.27,130.24,3.8384]
[1726692437992,20.4178,130.27,130.19,16.58]
[1726692438395,20.4178,130.27,130.23,3.8385]
[1726692438587,20.4176,130.27,130.19,16.58]
[1726692438993,20.4176,130.27,130.23,3.8385]
[1726692439192,20.4176,130.27,130.19,16.58]
[1726692439492,20.4176,130.27,130.24,3.8384]
[1726692445190,3.838,130.26,130.19,16.58]
[1726692445401,20.38733221,130.26,130.18,3.0519]
[1726692445591,16.58,130.24,130.18,3.0519]
[1726692445898,3.8387,130.23,130.2,3.8395]
[1726692446100,16.58,130.24,130.2,3.8395]
[1726692446490,20.4186,130.24,130.2,3.8395]
[1726692446792,16.58,130.22,130.19,3.8397]
[1726692446990,16.58,130.22,130.16,140.12178314]
[1726692447187,16.58,130.24,130.16,140.12178314]
[1726692448390,3.8389,130.23,130.2,3.8395]
[1726692449397,20.419,130.22,130.19,3.8397]
[1726692449594,16.58,130.22,130.19,3.8397]
[1726692449996,16.58,130.2,130.16,140.12178314]
[1726692450295,16.58,130.2,130.13,3.0383]
[1726692450702,3.8399,130.19,130.16,3.8406]
[1726692450887,16.58,130.22,130.13,19.6183]
[1726692451290,3.8394,130.21,130.18,3.8401]
[1726692453398,16.58,130.22,130.18,3.8401]
[1726692453399,20.4192,130.22,130.18,3.8401]
[1726692454203,3.8393,130.21,130.18,3.8401]
[1726692454405,16.58,130.22,130.18,3.8401]
[1726692454603,20.4192,130.22,130.18,3.8401]
[1726692456201,16.58,130.22,130.2,3.8394]
[1726692456501,16.58,130.24,130.15,16.58]
[1726692456894,3.8385,130.24,130.15,16.58]
[1726692457403,3.8387,130.23,130.2,3.8394]
[1726692461011,3.8387,130.23,130.19,3.8397]
[1726692462311,3.8387,130.23,130.2,3.8396]
[1726692462501,19.5412,130.25,130.17,16.58]
[1726692462709,2.9612,130.25,130.23,3.8387]
[1726692463005,3.80733221,130.26,130.2,16.58]
[1726692463309,16.58,130.28,130.2,16.58]
[1726692463709,16.58,130.3,130.22,16.58]
[1726692463905,3.92753883,130.33,130.25,16.58]
[1726692464110,16.58,130.34,130.27,16.58]
[1726692464314,20.49300295,130.34,130.29,3.8368]
[1726692464708,20.49300295,130.34,130.27,16.58]
[1726692464905,24.32860295,130.34,130.27,16.58]
[1726692465712,24.32860295,130.34,130.29,3.8369]
[1726692467116,3.8358,130.33,130.29,3.8369]
[1726692468017,24.32860295,130.34,130.29,3.8369]
[1726692469505,3.8358,130.33,130.29,3.8369]
[1726692476420,3.8358,130.33,130.3,3.8367]
[1726692480026,10.62,130.32,130.3,3.8367]
[1726692482831,4.444,130.4,130.31,10.62]
[1726692483032,10.62,130.38,130.34,10.62]
[1726692483329,18.3601914,130.38,130.35,3.835]
[1726692484137,10.62,130.37,130.34,3.8353]
[1726692484336,14.4547,130.37,130.34,3.8353]
[1726692484734,3.9056914,130.38,130.33,3.8356]
[1726692484933,10.62,130.34,130.29,12.0923]
[1726692485144,10.62,130.34,130.3,10.62]
[1726692485935,3.88534326,130.38,130.31,10.62]
[1726692486236,14.4548,130.37,130.31,10.62]
[1726692487140,14.4548,130.37,130.33,10.62]
[1726692487141,10.62,130.37,130.33,10.62]
[1726692487935,14.4547,130.37,130.34,3.8353]
[1726692489736,10.62,130.36,130.29,1.4723]
[1726692489940,10.62,130.36,130.3,10.62]
[1726692490329,14.4551,130.36,130.3,10.62]
[1726692490936,14.4551,130.36,130.33,3.8356]
[1726692491535,14.4551,130.36,130.29,1.4723]
[1726692491536,14.4551,130.36,130.34,3.8355]
[1726692491732,14.4547,130.37,130.31,10.62]
[1726692492033,4.444,130.4,130.33,10.62]
[1726692492237,15.62251162,130.39,130.34,10.62]
[1726692492443,1.16841162,130.38,130.35,10.62]
[1726692492749,1.16841162,130.38,130.37,3.8346]
[1726692493140,3.88759941,130.39,130.38,3.8343]
[1726692493438,15.064,130.4,130.38,3.8343]
[1726692493634,15.064,130.4,130.37,3.8346]
[1726692493835,18.96311254,130.4,130.35,10.62]
[1726692494040,12.17701254,130.4,130.33,16.58]
[1726692494238,12.17701254,130.4,130.36,3.8348]
[1726692495542,12.17701254,130.4,130.33,16.58]
[1726692495841,16.58,130.43,130.34,16.58]
[1726692496050,1.16811971,130.42,130.34,16.58]
[1726692496350,1.16811971,130.42,130.37,3.8344]
[1726692496540,16.58,130.41,130.32,16.58]
[1726692496848,1.16831652,130.4,130.32,16.58]
[1726692497053,1.16831652,130.4,130.34,16.58]
[1726692497342,5.44111619,130.41,130.34,16.58]
[1726692497547,9.27471619,130.41,130.38,3.8342]
[1726692498044,5.44111619,130.41,130.38,3.8342]
[1726692498543,3.90981619,130.41,130.36,16.58]
[1726692498748,2.9731,130.44,130.36,16.58]
[1726692498939,5.0010175,130.43,130.36,16.58]
[1726692499143,4.4723,130.44,130.36,16.58]
[1726692499339,1.16801858,130.43,130.35,16.58]
[1726692499545,17.74801858,130.43,130.35,16.58]
[1726692499744,1.16801858,130.42,130.35,16.58]
[1726692499940,3.8336,130.41,130.38,3.8341]
[1726692500148,7.57727778,130.41,130.35,16.58]
[1726692500951,3.8337,130.4,130.35,16.58]
[1726692501247,3.8337,130.4,130.38,3.8342]
[1726692501850,3.87660738,130.39,130.38,3.8342]
[1726692502848,3.8336,130.41,130.38,3.8342]
[1726692503149,3.8338,130.4,130.38,3.8342]
[1726692503940,3.80371719,130.39,130.38,3.8342]
[1726692504146,16.58,130.43,130.38,3.8342]
[1726692504354,1.16805698,130.42,130.38,3.8342]
[1726692504548,3.8336,130.41,130.38,3.8342]
[1726692504944,7.74558503,130.41,130.38,3.8342]
[1726692507455,3.8337,130.4,130.38,3.8342]
[1726692507657,3.8337,130.4,130.35,16.58]
[1726692507658,16.58,130.39,130.35,3.835]
[1726692508050,3.8346,130.37,130.34,3.8353]
[1726692508252,20.42063484,130.39,130.3,16.58]
[1726692508560,5.00301695,130.38,130.35,3.8351]
[1726692508857,3.8346,130.38,130.35,3.8351]
[1726692509251,20.42063484,130.39,130.34,3.8353]
[1726692509456,1.16840504,130.38,130.34,3.8353]
[1726692509754,1.16840504,130.38,130.3,16.58]
[1726692510064,5.00290504,130.38,130.35,3.8351]
[1726692510260,3.8345,130.38,130.35,3.8351]
[1726692510553,3.8345,130.38,130.3,16.58]
[1726692510554,24.25473484,130.39,130.36,3.8349]
[1726692510757,1.16838549,130.38,130.36,3.8349]
[1726692510955,24.25473484,130.39,130.35,3.835]
[1726692511257,1.16838594,130.38,130.3,16.58]
[1726692511560,24.25473484,130.39,130.36,3.8348]
[1726692511753,3.84063484,130.39,130.32,16.58]
[1726692511956,16.58,130.42,130.34,16.58]
[1726692512161,1.16823194,130.41,130.34,16.58]
[1726692512458,3.8338,130.4,130.37,3.8343]
[1726692513266,7.74536017,130.4,130.37,3.8343]
[1726692513961,14.52156017,130.4,130.37,3.8343]
[1726692514160,10.61,130.4,130.37,3.8343]
[1726692514867,14.52211074,130.4,130.37,3.8343]
[1726692515362,14.52211074,130.4,130.3,7.6731]
[1726692515363,10.61,130.39,130.36,3.8348]
[1726692515558,10.61,130.39,130.3,7.6731]
[1726692515559,10.61,130.37,130.32,10.61]
[1726692515956,10.61,130.37,130.35,3.8352]
[1726692516156,10.61,130.37,130.32,10.61]
[1726692516355,3.87566369,130.36,130.32,10.61]
[1726692516755,3.87566369,130.36,130.35,3.835]
[1726692517670,4.4723,130.44,130.35,10.61]
[1726692517856,10.61,130.4,130.36,10.61]
[1726692518062,10.61,130.39,130.34,10.61]
[1726692518767,14.4441,130.39,130.36,3.8346]
[1726692519068,14.4441,130.39,130.34,10.61]
[1726692519268,10.61,130.39,130.37,3.8345]
[1726692520065,10.61,130.39,130.38,3.8343]
[1726692520365,10.61,130.39,130.34,10.61]
[1726692521159,10.61,130.39,130.37,3.8344]
[1726692521556,10.61,130.39,130.31,7.6726]
[1726692521857,10.61,130.36,130.31,10.61]
[1726692522367,14.52019247,130.36,130.31,10.61]
[1726692522564,2.822,130.38,130.34,10.61]
[1726692522772,13.23903571,130.44,130.36,10.61]
[1726692522961,10.61,130.41,130.36,10.61]
[1726692523273,15.63710045,130.4,130.36,10.61]
[1726692523473,10.61,130.4,130.36,10.61]
[1726692523965,14.39205234,130.4,130.36,10.61]
[1726692524760,10.61,130.39,130.34,10.61]
[1726692525076,10.61,130.39,130.37,3.8345]
[1726692525269,10.61,130.38,130.33,10.61]
[1726692525464,3.83960065,130.37,130.36,3.8348]
[1726692526464,10.61,130.38,130.37,3.8346]
[1726692526678,10.61,130.39,130.34,10.61]
[1726692526968,3.82425299,130.38,130.34,10.61]
[1726692527171,10.61,130.4,130.35,10.61]
[1726692527468,1.5193,130.44,130.39,10.61]
[1726692527670,1.16791968,130.43,130.4,10.61]
[1726692528165,1.16791968,130.43,130.41,3.8334]
[1726692528374,12.1293,130.44,130.41,3.8334]
[1726692528565,15.9619,130.44,130.41,3.8334]
[1726692529472,10.61,130.42,130.33,2.8159]
[1726692529668,10.61,130.42,130.36,10.61]
[1726692530367,14.4433,130.42,130.36,10.61]
[1726692530972,14.4433,130.42,130.39,3.8338]
[1726692531171,1.16811348,130.41,130.39,3.8338]
[1726692531473,3.77647928,130.4,130.39,3.8338]
[1726692531664,14.4433,130.42,130.39,3.8338]
[1726692533774,1.16807291,130.41,130.39,3.8338]
[1726692533969,3.77686291,130.4,130.39,3.8338]
[1726692534370,14.4433,130.42,130.39,3.8338]
[1726692534570,1.16810239,130.41,130.39,3.8338]
[1726692534968,3.78223377,130.4,130.39,3.8338]
[1726692535371,14.4433,130.42,130.39,3.8338]
[1726692535575,1.16810212,130.41,130.39,3.8338]
[1726692535773,3.92341056,130.4,130.39,3.8338]
[1726692536270,10.61,130.42,130.39,3.8338]
[1726692536463,1.1681004,130.41,130.39,3.8338]
[1726692536677,1.1681004,130.41,130.4,3.8337]
[1726692536876,4.91043638,130.41,130.4,3.8337]
[1726692537075,27.33845779,130.43,130.38,10.61]
[1726692537274,1.16798808,130.42,130.38,10.61]
[1726692537474,16.72845779,130.43,130.39,10.61]
[1726692537679,10.61,130.45,130.39,10.61]
[1726692537979,1.16785885,130.44,130.39,10.61]
[1726692538370,1.16785885,130.44,130.42,3.8329]
[1726692538571,14.4424,130.45,130.42,3.8329]
[1726692538772,1.1678657,130.44,130.42,3.8329]
[1726692540781,11.7778657,130.44,130.42,3.8329]
[1726692540972,10.61,130.44,130.42,3.8329]
[1726692542388,29.95880481,130.45,130.44,3.8326]
[1726692542577,228.0,130.52,130.44,10.61]
[1726692542883,228.0,130.52,130.48,3.8313]
[1726692542884,14.39461402,130.51,130.48,3.8313]
[1726692543080,1.16731769,130.5,130.47,10.61]
[1726692543386,14.42617692,130.52,130.49,3.8309]
[1726692543574,14.42617692,130.52,130.47,10.61]
[1726692544278,3.81617692,130.52,130.43,10.61]
[1726692544578,10.61,130.48,130.47,3.8317]
[1726692544774,14.46122526,130.48,130.47,3.8317]
[1726692548283,3.85122526,130.48,130.47,3.8317]
[1726692548481,14.4408,130.5,130.47,3.8317]
[1726692549194,18.33603126,130.5,130.47,3.8317]
[1726692549879,14.50523126,130.5,130.48,3.8313]
[1726692550588,14.50523126,130.5,130.47,3.8315]
[1726692551887,4.3263,130.54,130.49,10.61]
[1726692552078,10.61,130.52,130.48,10.61]
[1726692552282,10.61,130.51,130.47,10.61]
[1726692552680,10.61,130.51,130.48,3.8313]
[1726692552987,10.61,130.51,130.46,10.61]
[1726692553292,10.61,130.51,130.5,3.8308]
[1726692553691,14.47379028,130.52,130.5,3.8308]
[1726692553879,10.61,130.52,130.5,3.8308]
[1726692554486,14.47473119,130.52,130.5,3.8308]
[1726692556393,14.47473119,130.52,130.49,3.8309]
[1726692556394,10.61,130.51,130.49,3.8309]
[1726692556992,14.47473119,130.52,130.5,3.8308]
[1726692557394,3.86473119,130.52,130.5,3.8308]
[1726692557692,1.5356,130.53,130.51,3.8305]
[1726692557892,3.76668356,130.52,130.51,3.8305]
[1726692559993,1.5356,130.53,130.52,3.8302]
[1726692560590,5.28014615,130.53,130.52,3.8302]
[1726692562084,3.74454615,130.53,130.52,3.8302]
[1726692565314,1.4252,130.54,130.51,3.8302]
[1726692565612,3.8818515,130.53,130.51,10.61]
[1726692565822,3.8818515,130.53,130.52,3.8301]
[1726692567314,2.8437,130.59,130.54,3.8293]
[1726692567613,2.8437,130.59,130.54,10.61]
[1726692567614,1.16651389,130.58,130.54,10.61]
[1726692567813,3.8287,130.58,130.54,14.4394]
[1726692568206,3.8287,130.58,130.54,10.61]
[1726692569112,3.82091501,130.59,130.45,0.8128]
[1726692569416,10.61,130.54,130.49,10.61]
[1726692569720,14.35895431,130.54,130.51,3.8304]
[1726692570013,14.35895431,130.54,130.49,10.61]
[1726692570209,3.74895431,130.54,130.49,10.61]
[1726692570412,10.61,130.56,130.5,10.61]
[1726692571310,3.8293,130.55,130.52,3.8301]
[1726692572610,14.4393,130.55,130.52,3.8301]
[1726692572806,3.8296,130.54,130.51,3.8303]
[1726692573010,3.81257385,130.53,130.51,3.8303]
[1726692573414,14.4395,130.55,130.51,3.8303]
[1726692573718,14.4395,130.55,130.52,3.8302]
[1726692574312,31.14471888,130.61,130.45,0.8128]
[1726692574313,10.61,130.53,130.45,0.8128]
[1726692574521,3.81257385,130.53,130.48,10.61]
[1726692574707,2.9256,130.54,130.5,10.61]
[1726692574914,13.5356,130.54,130.51,3.8304]
[1726692575314,21.28135143,130.54,130.51,3.8304]
[1726692575714,21.28135143,130.54,130.5,14.4405]
[1726692576606,14.4399,130.53,130.5,3.8305]
[1726692577008,10.61,130.53,130.5,3.8305]
[1726692578221,14.44,130.53,130.5,3.8305]
[1726692580719,14.44,130.53,130.48,10.61]
[1726692580720,10.61,130.53,130.48,10.61]
[1726692581113,14.4401,130.53,130.5,3.8307]
[1726692581316,10.61,130.52,130.5,3.8307]
[1726692581523,10.61,130.52,130.45,0.6256]
[1726692581822,10.61,130.5,130.48,3.8312]
[1726692587426,10.61,130.49,130.47,3.8315]
[1726692589218,10.61,130.49,130.48,3.8314]
[1726692589624,10.61,130.49,130.41,0.1864]
[1726692589828,10.61,130.46,130.38,7.6683]
[1726692590026,10.61,130.43,130.37,139.89682178]
[1726692590224,10.61,130.42,130.39,3.8338]
[1726692590530,10.61,130.42,130.37,150.50682178]
[1726692590923,10.61,130.42,130.4,3.8336]
[1726692591327,3.85706383,130.43,130.38,10.61]
[1726692591526,1.4923,130.47,130.38,10.61]
[1726692591721,10.61,130.43,130.38,10.61]
[1726692592032,14.49658316,130.43,130.38,10.61]
[1726692592428,14.49658316,130.43,130.42,3.8331]
[1726692592633,14.49658316,130.43,130.38,10.61]
[1726692593727,14.49658316,130.43,130.41,3.8334]
[1726692594126,14.49658316,130.43,130.38,10.61]
[1726692594727,14.49658316,130.43,130.4,3.8335]
[1726692595227,10.61,130.42,130.38,10.61]
[1726692595832,10.61,130.42,130.4,3.8336]
[1726692596334,10.61,130.42,130.41,3.8334]
[1726692598025,3.88658316,130.43,130.42,3.8331]
[1726692598233,10.61,130.45,130.42,3.8331]
[1726692598535,1.16768752,130.44,130.43,3.8327]
[1726692598727,14.45907411,130.45,130.4,10.61]
[1726692599232,14.45907411,130.45,130.43,3.8327]
[1726692600430,1.4923,130.47,130.41,10.61]
[1726692600631,3.78548914,130.47,130.44,10.61]
[1726692601032,3.78548914,130.47,130.46,3.832]
[1726692601338,10.61,130.51,130.46,10.61]
[1726692601638,1.16717808,130.5,130.46,10.61]
[1726692601837,10.61,130.51,130.46,10.61]
[1726692602039,1.16717328,130.5,130.49,3.8311]
[1726692602236,12.0141,130.52,130.49,3.8311]
[1726692602734,1.16707433,130.51,130.49,3.8311]
[1726692603034,11.77707433,130.51,130.49,3.8311]
[1726692603229,10.61,130.51,130.49,3.8311]
[1726692603435,12.0141,130.52,130.5,3.8308]
[1726692603636,10.61,130.52,130.5,3.8308]
[1726692603935,10.61,130.52,130.41,7.6667]
[1726692603936,2.9208,130.53,130.51,3.8305]
[1726692604126,1.1670618,130.52,130.51,3.8305]
[1726692605234,2.9208,130.53,130.51,3.8305]
[1726692605540,1.16707141,130.52,130.51,3.8305]
[1726692606032,3.91605143,130.54,130.48,16.57]
[1726692606234,3.8296,130.54,130.46,16.57]
[1726692606437,1.16690025,130.53,130.46,16.57]
[1726692606639,17.73690025,130.53,130.45,16.57]
[1726692606840,17.73690025,130.53,130.44,7.6647]